{"text_format":"3","workbook":"xlsx","n_sheets":4,"sheets":["Datos básicos","Presupuesto financiamientos","Transferencia de financiamiento","Ejemplo"],"not_rendered":{"defined_names":7},"read":"whole","date_system":"1900"}

{"sheet":"Datos básicos","index":0,"n_rows":22,"n_cols":10,"rows_kept":22,"merged":[[0,1,0,6],[0,9,0,14],[2,2,2,6],[4,2,4,4],[5,2,5,6],[6,4,6,6],[7,4,7,6],[15,3,15,6],[16,3,16,6],[17,3,17,6],[18,3,18,6],[19,2,19,6],[21,2,21,6]]}
[null,"Datos básicos",{"$nulls":7},"Instrucciones para el receptor de financiamiento:\nIntroduzca primero los siguientes datos básicos antes de rellenar la hoja “Presupuesto financiamientos”.\nRellene solo las celdas con fondo azul. Todas las demás celdas se calculan automáticamente."]
[]
[null,"Nombre del receptor: ",{"$nulls":5},{"$f":"IF(C3=\"Bitte eintragen\",\"- Bitte den Namen Ihres Vereins im Feld <Name des Zuschussempfängers> eintragen; \",\" \")","v":" "}]
[]
[null,"¿Se trata del primer presupuesto\no de una adaptación del contrato?","Seleccionar",null,null,{"$f":"IF(C5=\"Complemento al contrato\",\"¿Qué número de adaptación del contrato?:\",\"\")","v":""},"Seleccionar solo en caso de complemento al contrato",{"$f":"IF(C5=\"Vertragsanpassung\",1,0)","v":0}]
[null,"Título del proyecto y número del contrato",{"$nulls":5},{"$f":"IF(C6=\"Veranstaltung\",1,IF(C6=\"Projekt\",1,0))","v":0}]
[null,"¿Necesita costos generales de administración?","Seleccionar","Indicar el importe de los costos generales de administración en porcentaje ",{"$nulls":3},{"$f":"IF(C7=\"Ja, anderer Betrag\",1,0)","v":0}]
[null,"¿Aporta usted una\ncontribución (financiera) propia?","Seleccionar","Importe en EUR",{"$nulls":3},{"$f":"IF(C8=\"Ja, anderer Betrag\",1,0)","v":0}]
[null,"¿Cuántos donantes está previsto que cofinancien el proyecto (además de la GIZ)?","Seleccionar","Nombre del proveedor externo de fondos",null,"Importe de los fondos de terceros en EUR"]
[{"$nulls":3},"Nombre del proveedor externo de fondos",null,"Importe de los fondos de terceros en EUR",null,{"$f":"IF(C10=\"Ja\",1,0)","v":0}]
[{"$nulls":3},"Nombre del proveedor externo de fondos",null,"Importe de los fondos de terceros en EUR",null,{"$f":"IF(C11=\"Ja\",1,0)","v":0}]
[{"$nulls":3},"Nombre del proveedor externo de fondos",null,"Importe de los fondos de terceros en EUR"]
[{"$nulls":3},"Nombre del proveedor externo de fondos",null,"Importe de los fondos de terceros en EUR"]
[{"$nulls":3},"Nombre del proveedor externo de fondos",null,"Importe de los fondos de terceros en EUR"]
[{"$nulls":3},"Nombre del proveedor externo de fondos",null,"Importe de los fondos de terceros en EUR"]
[null,"¿Está previsto transferir financiamientos a receptores terceros? (Tenga en cuenta que no se está haciendo referencia a prestaciones).","Seleccionar","Son contrapartes que implementan de forma autónoma una parte del proyecto del receptor. Debe presentarse un presupuesto aparte y el proyecto de la GIZ debe realizar un examen de la aptitud comercial y jurídica (solo los criterios de personalidad jurídica y utilidad pública). "]
[null,"¿Se adquieren medicamentos y pesticidas y fertilizantes minerales?  ","Seleccionar","Es necesario un proceso de autorización interno de la GIZ aparte."]
[null,"¿Porcentaje de adquisiciones de equipos y materiales superior a 1 000 000 EUR o de más del 50 % con un valor contractual del financiamiento de al menos 400 000 EUR?","Seleccionar","Es necesario un proceso de autorización interno de la GIZ aparte."]
[null,"¿Se financian medidas de construcción?  ","Seleccionar","Dado el caso, puede ser necesario un proceso de autorización interno de la GIZ aparte.  \n"]
[null,"¿Desea que se muestren ayudas para la introducción de datos en el presupuesto? \nSe recomienda responder “Sí” para la edición.\nSe recomienda responder “No” para una mejor visión de conjunto.","Sí"]
[]
[null,"Fecha de la creación del presupuesto:"]

{"sheet":"Presupuesto financiamientos","index":1,"n_rows":198,"n_cols":15,"rows_kept":198,"merged":[[0,0,0,8],[0,14,0,23],[2,14,2,23],[3,1,3,7],[3,8,3,9],[4,3,4,7],[4,9,168,9],[42,3,42,7],[43,4,43,6],[44,4,44,6],[45,4,45,6],[46,4,46,6],[47,4,47,6],[48,4,48,6],[49,4,49,6],[50,4,50,6],[51,4,51,6],[52,4,52,6],[53,4,53,6],[54,4,54,6],[55,4,55,6],[56,4,56,6],[57,4,57,6],[58,4,58,6],[59,4,59,6],[60,4,60,6],[61,4,61,6],[62,4,62,6],[63,4,63,6],[64,4,64,6],[65,4,65,6],[66,4,66,6],[67,4,67,6],[68,4,68,6],[69,4,69,6],[70,4,70,6],[71,4,71,6],[72,3,72,7],[73,4,73,6],[74,4,74,6],[75,4,75,6],[76,4,76,6],[77,4,77,6],[78,4,78,6],[79,4,79,6],[80,4,80,6],[81,4,81,6],[82,4,82,6],[83,4,83,6],[84,4,84,6],[85,4,85,6],[86,4,86,6],[87,4,87,6],[88,4,88,6],[89,4,89,6],[90,4,90,6],[91,4,91,6],[92,4,92,6],[93,4,93,6],[94,4,94,6],[95,4,95,6],[96,4,96,6],[97,4,97,6],[98,4,98,6],[99,4,99,6],[100,4,100,6],[101,3,101,7],[102,4,102,6],[103,4,103,6],[104,4,104,6],[105,4,105,6],[106,4,106,6],[107,4,107,6],[108,4,108,6],[109,4,109,6],[110,4,110,6],[111,4,111,6],[112,4,112,6],[113,4,113,6],[114,4,114,6],[115,4,115,6],[116,4,116,6],[117,4,117,6],[118,4,118,6],[119,4,119,6],[120,4,120,6],[121,4,121,6],[122,4,122,6],[123,4,123,6],[124,4,124,6],[125,4,125,6],[126,4,126,6],[127,4,127,6],[128,4,128,6],[129,3,129,7],[130,4,130,6],[131,4,131,6],[132,4,132,6],[133,4,133,6],[134,4,134,6],[135,4,135,6],[136,4,136,6],[137,4,137,6],[138,4,138,6],[139,4,139,6],[140,4,140,6],[141,4,141,6],[142,4,142,6],[143,4,143,6],[144,4,144,6],[145,4,145,6],[146,4,146,6],[147,4,147,6],[148,4,148,6],[149,4,149,6],[150,4,150,6],[151,3,151,7],[162,3,162,7],[168,1,168,7],[169,3,169,7],[172,3,172,7],[179,3,179,7],[189,1,189,7],[189,8,189,9],[191,1,191,10],[193,1,193,9],[194,1,194,9],[195,1,195,9],[197,1,197,9]]}
[{"$f":"IF('Datos básicos'!C3=\"\",\"Introduzca primero los datos básicos\",CONCATENATE(\"Presupuesto estimado - Anexo 1\",CHAR(10),'Datos básicos'!C3,\" - \",'Datos básicos'!C6,\"\",'Datos básicos'!E6,\"\",IF(L4=\"VE\",CONCATENATE(\" - \",'Datos básicos'!G5,\" Complemento al contrato\",\"\"),\"\")))","v":"Introduzca primero los datos básicos"},{"$nulls":8},{"$f":"'Datos básicos'!C22","v":"00:00:00"},{"$nulls":3},"Sin cambios","Instrucciones:\nIntroduzca primero los datos básicos antes de rellenar esta hoja “Presupuesto financiamientos”.\nEn la hoja “Presupuesto financiamientos” rellene solo las celdas con fondo azul. Todas las demás celdas se calculan automáticamente."]
[{"$nulls":9},"2023-08",{"$nulls":3},"cambios"]
[null,"Descripción","Có-\ndigo","Número ","Unidad (p. ej., persona, vehículo, sala…)","Número","Unidad (p. ej., meses, días, cursos…)","Subvencio-nable hasta  \nen EUR \n(precio por unidad) ","Contribución\ntotal de la GIZ \nen EUR (hasta)","Contribución propia / financiamiento de terceros \nen EUR (hasta) ",null,{"$f":"IF($L$4=\"VE\",CONCATENATE(\"En el caso de ajustes contractuales\",CHAR(10),\"¿Ha cambiado la línea presupuestaria?\"),\"\")","v":""},null,null,"Indicaciones generales: \nEste formato del presupuesto es válido como base de liquidación. Si lo desea, para su uso interno puede crear otros archivos con información más detallada.\nTodas las partidas indicadas en el presupuesto se deben reflejar en la descripción del proyecto para que quede clara la referencia al proyecto. \nLa tabla dispone de fórmulas que deben mantenerse.  \nMantenga el formato con dos decimales. \nSe recomienda redondear al alza las unidades en la medida de lo posible. Los costos se acuerdan con un valor de “hasta”. "]
[null,{"$f":"IF('Datos básicos'!C20=\"Sí\",CONCATENATE(\"Nota: Las celdas con fondo azul deben ser rellenados por \",IF('Datos básicos'!C3=\"\",\" el receptor\",'Datos básicos'!C3)),\"\")","v":"Nota: Las celdas con fondo azul deben ser rellenados por  el receptor"},{"$nulls":6},{"$f":"IF('Datos básicos'!C20=\"Sí\",\"Nota: se calculan automáticamente\",\"\")","v":"Nota: se calculan automáticamente"},null,null,{"$f":"IF('Datos básicos'!C5=\"Complemento al contrato\",\"VE\",\"NOVE\")","v":"NOVE"}]
[1,"Personal propio - precio de coste para los empleados del receptor (denominación de función)\n(Indicación 1: Solo colaboradores y colaboradoras de sus organizaciones; \nla acreditación de esta línea presupuestaria debe realizarse en forma de liquidaciones salariales o, en el caso de financiamientos parciales, en forma de liquidaciones salariales y registros de tiempos trabajados; \nIndicación 2: Solamente pueden liquidarse costos directos del personal (costo bruto del personal para el empleador); los suplementos, como costos generales de personal, que se calculan de manera prorrateada sobre el personal, no son subvencionables).",null,{"$f":"IF('Datos básicos'!C20=\"Sí\",CONCATENATE(\"Ayuda:\",Ejemplo!P5),\"\")","v":"Ayuda:La columna “Subvencionable hasta” debería indicar siempre el costo bruto del empleador. En el caso de los puestos de jornada parcial el porcentaje debe indicarse en la columna D. Indique qué costos adicionales no salariales prescritos por ley se generan en su país. Por norma general son financiables las contribuciones sociales y los pagos acordados en virtud del contrato de trabajo o del convenio colectivo (excepto los pagos de bonificaciones o las participaciones en los beneficios). Otros gastos accesorios deberán concertarse, examinarse e integrarse en la línea presupuestaria en forma de nota antes de la elaboración del contrato. Los contratos de miniempleos o de personal temporal estudiantil se deben atribuir a los costos de personal, aun cuando no se abonen contribuciones sociales.                                                                                                                                                                                         Si está previsto financiar proporcionalmente a varias personas (por ejemplo, 3 personas a un 75 %) incrementar el número de meses correspondientemente e incluir el número de personas en la descripción de la línea presupuestaria."},{"$nulls":4},{"$f":"SUM(I6:I42)","v":{"v":0,"d":"0.00 €"}},"La GIZ no puede aceptar líneas presupuestarias de manera prorrateada, excepto las líneas presupuestarias principales \"costos de personal\", que se pueden atribuir porcentualmente, así como “costos locales del proyecto prorrateados\". \n\nOtros costes que surgen en el curso de la ejecución del proyecto y que no serán cubiertos por la GIZ se calculan por separado. Ya sea como contribución propia o, dado el caso, como contribución financiera de un tercero/financiación de terceros.",null,{"$f":"IF(L4=\"VE\",\"ATENCIÓN: La GIZ no puede asumir los costos que se generan por las fluctuaciones cambiarias.\",\"\")","v":""}]
[{"$nulls":4},"Persona ",null,"Meses ",null,{"$f":"ROUND(D6*F6*H6,2)","v":{"v":0,"d":"0.00 €"}},null,null,"Sin cambios"]
[{"$nulls":4},"Persona ",null,"Meses ",null,{"$f":"ROUND(D7*F7*H7,2)","v":{"v":0,"d":"0.00 €"}},null,null,"Sin cambios"]
[{"$nulls":4},"Persona ",null,"Meses ",null,{"$f":"ROUND(D8*F8*H8,2)","v":{"v":0,"d":"0.00 €"}},null,null,"Sin cambios"]
[{"$nulls":4},"Persona ",null,"Meses ",null,{"v":0,"d":"0.00 €"},null,null,"Sin cambios"]
[{"$nulls":4},"Persona ",null,"Meses ",null,{"v":0,"d":"0.00 €"},null,null,"Sin cambios"]
[{"$nulls":4},"Persona ",null,"Meses ",null,{"v":0,"d":"0.00 €"},null,null,"Sin cambios"]
[{"$nulls":4},"Persona ",null,"Meses ",null,{"v":0,"d":"0.00 €"},null,null,"Sin cambios"]
[{"$nulls":4},"Persona ",null,"Meses ",null,{"v":0,"d":"0.00 €"},null,null,"Sin cambios"]
[{"$nulls":4},"Persona ",null,"Meses ",null,{"v":0,"d":"0.00 €"},null,null,"Sin cambios"]
[{"$nulls":4},"Persona ",null,"Meses ",null,{"v":0,"d":"0.00 €"},null,null,"Sin cambios"]
[{"$nulls":4},"Persona ",null,"Meses ",null,{"v":0,"d":"0.00 €"},null,null,"Sin cambios"]
[{"$nulls":4},"Persona ",null,"Meses ",null,{"v":0,"d":"0.00 €"},null,null,"Sin cambios"]
[{"$nulls":4},"Persona ",null,"Meses ",null,{"v":0,"d":"0.00 €"},null,null,"Sin cambios"]
[{"$nulls":4},"Persona ",null,"Meses ",null,{"v":0,"d":"0.00 €"},null,null,"Sin cambios"]
[{"$nulls":4},"Persona ",null,"Meses ",null,{"v":0,"d":"0.00 €"},null,null,"Sin cambios"]
[{"$nulls":4},"Persona ",null,"Meses ",null,{"v":0,"d":"0.00 €"},null,null,"Sin cambios"]
[{"$nulls":4},"Persona ",null,"Meses ",null,{"v":0,"d":"0.00 €"},null,null,"Sin cambios"]
[{"$nulls":4},"Persona ",null,"Meses ",null,{"v":0,"d":"0.00 €"},null,null,"Sin cambios"]
[{"$nulls":4},"Persona ",null,"Meses ",null,{"v":0,"d":"0.00 €"},null,null,"Sin cambios"]
[{"$nulls":4},"Persona ",null,"Meses ",null,{"v":0,"d":"0.00 €"},null,null,"Sin cambios"]
[{"$nulls":4},"Persona ",null,"Meses ",null,{"v":0,"d":"0.00 €"},null,null,"Sin cambios"]
[{"$nulls":4},"Persona ",null,"Meses ",null,{"v":0,"d":"0.00 €"},null,null,"Sin cambios"]
[{"$nulls":4},"Persona ",null,"Meses ",null,{"v":0,"d":"0.00 €"},null,null,"Sin cambios"]
[{"$nulls":4},"Persona ",null,"Meses ",null,{"v":0,"d":"0.00 €"},null,null,"Sin cambios"]
[{"$nulls":4},"Persona ",null,"Meses ",null,{"v":0,"d":"0.00 €"},null,null,"Sin cambios"]
[{"$nulls":4},"Persona ",null,"Meses ",null,{"v":0,"d":"0.00 €"},null,null,"Sin cambios"]
[{"$nulls":4},"Persona ",null,"Meses ",null,{"v":0,"d":"0.00 €"},null,null,"Sin cambios"]
[{"$nulls":4},"Persona ",null,"Meses ",null,{"v":0,"d":"0.00 €"},null,null,"Sin cambios"]
[{"$nulls":4},"Persona ",null,"Meses ",null,{"v":0,"d":"0.00 €"},null,null,"Sin cambios"]
[{"$nulls":4},"Persona ",null,"Meses ",null,{"v":0,"d":"0.00 €"},null,null,"Sin cambios"]
[{"$nulls":4},"Persona ",null,"Meses ",null,{"v":0,"d":"0.00 €"},null,null,"Sin cambios"]
[{"$nulls":4},"Persona ",null,"Meses ",null,{"v":0,"d":"0.00 €"},null,null,"Sin cambios"]
[{"$nulls":4},"Persona ",null,"Meses ",null,{"v":0,"d":"0.00 €"},null,null,"Sin cambios"]
[{"$nulls":4},"Persona ",null,"Meses ",null,{"v":0,"d":"0.00 €"},null,null,"Sin cambios"]
[{"$nulls":4},"Persona ",null,"Meses ",null,{"v":0,"d":"0.00 €"},null,null,"Sin cambios"]
[{"$nulls":4},"Persona ",null,"Meses ",null,{"$f":"ROUND(D41*F41*H41,2)","v":{"v":0,"d":"0.00 €"}},null,null,"Sin cambios"]
[{"$nulls":4},"Persona ",null,"Meses ",null,{"v":0,"d":"0.00 €"},null,null,"Sin cambios"]
[2,"Servicios externos (tipo/contenido del servicio)\n",null,{"$f":"IF('Datos básicos'!C20=\"Sí\",CONCATENATE(\"Ayuda:\",Ejemplo!P11),\"\")","v":"Ayuda:Indicar el nombre de la función; ningún detalle del contrato (horas de trabajo, etc.); mencionar solo el número de los contratos y el valor planificado (deben observarse las directrices de adjudicación relevantes según el texto del contrato); por contrato debería utilizarse una línea presupuestaria; todos los costos generados durante la realización de la prestación en el marco de un contrato de servicios (por ejemplo, capacitación, viajes) se indican en una línea presupuestaria.                                                                                                                                                                                                              Eventos: Las prestaciones que realiza un mismo oferente deben indicarse en una línea presupuestaria (por ejemplo, si el catering y el lugar de un evento son ofertados por un hotel, entonces deben indicarse en una misma línea presupuestaria; si se reserva otro hotel para el alojamiento, ese se incluye entonces en una línea presupuestaria individual). Los ingresos que percibe el receptor en concepto de la organización de eventos no se pueden financiar con cargo al contrato (p. ej., alquiler de salas para dependencias propias). Solo se financian costos que se puedan acreditar fehacientemente."},{"$nulls":4},{"$f":"SUM(I44:I72)","v":{"v":0,"d":"0.00 €"}}]
[{"$nulls":4},"Contrato ",{"$nulls":3},{"$f":"ROUND(D44*H44,2)","v":{"v":0,"d":"0.00 €"}},null,null,"Sin cambios"]
[{"$nulls":4},"Contrato ",{"$nulls":3},{"v":0,"d":"0.00 €"},null,null,"Sin cambios"]
[{"$nulls":4},"Contrato ",{"$nulls":3},{"v":0,"d":"0.00 €"},null,null,"Sin cambios"]
[{"$nulls":4},"Contrato ",{"$nulls":3},{"v":0,"d":"0.00 €"},null,null,"Sin cambios"]
[{"$nulls":4},"Contrato ",{"$nulls":3},{"v":0,"d":"0.00 €"},null,null,"Sin cambios"]
[{"$nulls":4},"Contrato ",{"$nulls":3},{"v":0,"d":"0.00 €"},null,null,"Sin cambios"]
[{"$nulls":4},"Contrato ",{"$nulls":3},{"v":0,"d":"0.00 €"},null,null,"Sin cambios"]
[{"$nulls":4},"Contrato ",{"$nulls":3},{"v":0,"d":"0.00 €"},null,null,"Sin cambios"]
[{"$nulls":4},"Contrato ",{"$nulls":3},{"v":0,"d":"0.00 €"},null,null,"Sin cambios"]
[{"$nulls":4},"Contrato ",{"$nulls":3},{"v":0,"d":"0.00 €"},null,null,"Sin cambios"]
[{"$nulls":4},"Contrato ",{"$nulls":3},{"v":0,"d":"0.00 €"},null,null,"Sin cambios"]
[{"$nulls":4},"Contrato ",{"$nulls":3},{"v":0,"d":"0.00 €"},null,null,"Sin cambios"]
[{"$nulls":4},"Contrato ",{"$nulls":3},{"v":0,"d":"0.00 €"},null,null,"Sin cambios"]
[{"$nulls":4},"Contrato ",{"$nulls":3},{"v":0,"d":"0.00 €"},null,null,"Sin cambios"]
[{"$nulls":4},"Contrato ",{"$nulls":3},{"v":0,"d":"0.00 €"},null,null,"Sin cambios"]
[{"$nulls":4},"Contrato ",{"$nulls":3},{"v":0,"d":"0.00 €"},null,null,"Sin cambios"]
[{"$nulls":4},"Contrato ",{"$nulls":3},{"v":0,"d":"0.00 €"},null,null,"Sin cambios"]
[{"$nulls":4},"Contrato ",{"$nulls":3},{"v":0,"d":"0.00 €"},null,null,"Sin cambios"]
[{"$nulls":4},"Contrato ",{"$nulls":3},{"v":0,"d":"0.00 €"},null,null,"Sin cambios"]
[{"$nulls":4},"Contrato ",{"$nulls":3},{"v":0,"d":"0.00 €"},null,null,"Sin cambios"]
[{"$nulls":4},"Contrato ",{"$nulls":3},{"v":0,"d":"0.00 €"},null,null,"Sin cambios"]
[{"$nulls":4},"Contrato ",{"$nulls":3},{"v":0,"d":"0.00 €"},null,null,"Sin cambios"]
[{"$nulls":4},"Contrato ",{"$nulls":3},{"v":0,"d":"0.00 €"},null,null,"Sin cambios"]
[{"$nulls":4},"Contrato ",{"$nulls":3},{"v":0,"d":"0.00 €"},null,null,"Sin cambios"]
[{"$nulls":4},"Contrato ",{"$nulls":3},{"v":0,"d":"0.00 €"},null,null,"Sin cambios"]
[{"$nulls":4},"Contrato ",{"$nulls":3},{"v":0,"d":"0.00 €"},null,null,"Sin cambios"]
[{"$nulls":4},"Contrato ",{"$nulls":3},{"v":0,"d":"0.00 €"},null,null,"Sin cambios"]
[{"$nulls":4},"Contrato ",{"$nulls":3},{"v":0,"d":"0.00 €"},null,null,"Sin cambios"]
[{"$nulls":4},"Contrato ",{"$nulls":3},{"v":0,"d":"0.00 €"},null,null,"Sin cambios"]
[3,"Costos de transporte / gastos de viaje",null,{"$f":"IF('Datos básicos'!C20=\"Sí\",CONCATENATE(\"Ayuda:\",Ejemplo!P22),\"\")","v":"Ayuda:Entre los gastos de viaje se cuentan normalmente todos los tipos de transporte, alojamientos, viáticos, visados. Otros costos deben indicarse por separado.  La liquidación se realiza con base en las facturas y/o las normas sobre viajes del receptor y/o las disposiciones legales (por ejemplo: Ley federal alemana de gastos de viaje). No es deseable una distribución en diferentes grupos de personas.\n\nNo indique cantidades de los vuelos; en caso de divergencias serían necesarios complementos al contrato; si se lleva a cabo una auditoría se comprobará el número de los vuelos."},{"$nulls":4},{"$f":"SUM(I74:I101)","v":{"v":0,"d":"0.00 €"}}]
[{"$nulls":8},{"$f":"ROUND(D74*H74,2)","v":{"v":0,"d":"0.00 €"}},null,null,"Sin cambios"]
[{"$nulls":8},{"v":0,"d":"0.00 €"},null,null,"Sin cambios"]
[{"$nulls":8},{"v":0,"d":"0.00 €"},null,null,"Sin cambios"]
[{"$nulls":8},{"v":0,"d":"0.00 €"},null,null,"Sin cambios"]
[{"$nulls":8},{"v":0,"d":"0.00 €"},null,null,"Sin cambios"]
[{"$nulls":8},{"v":0,"d":"0.00 €"},null,null,"Sin cambios"]
[{"$nulls":8},{"v":0,"d":"0.00 €"},null,null,"Sin cambios"]
[{"$nulls":8},{"$f":"ROUND(D81*H81,2)","v":{"v":0,"d":"0.00 €"}},null,null,"Sin cambios"]
[{"$nulls":8},{"$f":"ROUND(D82*H82,2)","v":{"v":0,"d":"0.00 €"}},null,null,"Sin cambios"]
[{"$nulls":8},{"v":0,"d":"0.00 €"},null,null,"Sin cambios"]
[{"$nulls":8},{"v":0,"d":"0.00 €"},null,null,"Sin cambios"]
[{"$nulls":8},{"v":0,"d":"0.00 €"},null,null,"Sin cambios"]
[{"$nulls":8},{"v":0,"d":"0.00 €"},null,null,"Sin cambios"]
[{"$nulls":8},{"v":0,"d":"0.00 €"},null,null,"Sin cambios"]
[{"$nulls":8},{"v":0,"d":"0.00 €"},null,null,"Sin cambios"]
[{"$nulls":8},{"$f":"ROUND(D89*H89,2)","v":{"v":0,"d":"0.00 €"}}]
[{"$nulls":8},{"v":0,"d":"0.00 €"}]
[{"$nulls":8},{"$f":"ROUND(D91*H91,2)","v":{"v":0,"d":"0.00 €"}}]
[{"$nulls":8},{"v":0,"d":"0.00 €"}]
[{"$nulls":8},{"v":0,"d":"0.00 €"}]
[{"$nulls":8},{"v":0,"d":"0.00 €"}]
[{"$nulls":8},{"$f":"ROUND(D95*H95,2)","v":{"v":0,"d":"0.00 €"}}]
[{"$nulls":8},{"$f":"ROUND(D96*H96,2)","v":{"v":0,"d":"0.00 €"}}]
[{"$nulls":8},{"v":0,"d":"0.00 €"}]
[{"$nulls":8},{"v":0,"d":"0.00 €"}]
[{"$nulls":8},{"v":0,"d":"0.00 €"},null,null,"Sin cambios"]
[{"$nulls":8},{"v":0,"d":"0.00 €"},null,null,"Sin cambios"]
[{"$nulls":8},{"v":0,"d":"0.00 €"},null,null,"Sin cambios"]
[4,"Adquisición de equipos y materiales",null,{"$f":"IF('Datos básicos'!C20=\"Sí\",CONCATENATE(\"Ayuda:\",Ejemplo!P35),\"\")","v":"Ayuda:Los bienes que se adquieren y acreditan en una misma factura, deberían indicarse en una línea presupuestaria. P. ej., el equipamiento de TI se puede consignar como una línea presupuestaria. En ese caso debería incluirse entre paréntesis una descripción más detallada de los equipos y materiales que previsiblemente se adquirirán. En el caso de medicamentos y productos agroquímicos, para una autorización se requiere información adicional. Para ello, rellene las hojas \"Medicamentos”, “Pesticidas y fertilizantes minerales”. "},{"$nulls":4},{"$f":"SUM(I103:I129)","v":{"v":0,"d":"0.00 €"}},null,{"$f":"IF(I180>400000,1,0)+(IF(I102>=(I180/2),1,0))","v":1}]
[{"$nulls":8},{"$f":"ROUND(D103*H103,2)","v":{"v":0,"d":"0.00 €"}},null,null,"Sin cambios"]
[{"$nulls":8},{"v":0,"d":"0.00 €"},null,null,"Sin cambios"]
[{"$nulls":8},{"v":0,"d":"0.00 €"},null,null,"Sin cambios"]
[{"$nulls":8},{"v":0,"d":"0.00 €"},null,null,"Sin cambios"]
[{"$nulls":8},{"v":0,"d":"0.00 €"},null,null,"Sin cambios"]
[{"$nulls":8},{"$f":"ROUND(D108*H108,2)","v":{"v":0,"d":"0.00 €"}},null,null,"Sin cambios"]
[{"$nulls":8},{"v":0,"d":"0.00 €"},null,null,"Sin cambios"]
[{"$nulls":8},{"v":0,"d":"0.00 €"},null,null,"Sin cambios"]
[{"$nulls":8},{"v":0,"d":"0.00 €"},null,null,"Sin cambios"]
[{"$nulls":8},{"v":0,"d":"0.00 €"},null,null,"Sin cambios"]
[{"$nulls":8},{"$f":"ROUND(D113*H113,2)","v":{"v":0,"d":"0.00 €"}},null,null,"Sin cambios"]
[{"$nulls":8},{"$f":"ROUND(D114*H114,2)","v":{"v":0,"d":"0.00 €"}}]
[{"$nulls":8},{"v":0,"d":"0.00 €"}]
[{"$nulls":8},{"$f":"ROUND(D116*H116,2)","v":{"v":0,"d":"0.00 €"}}]
[{"$nulls":8},{"v":0,"d":"0.00 €"}]
[{"$nulls":8},{"v":0,"d":"0.00 €"}]
[{"$nulls":8},{"v":0,"d":"0.00 €"}]
[{"$nulls":8},{"$f":"ROUND(D120*H120,2)","v":{"v":0,"d":"0.00 €"}}]
[{"$nulls":8},{"$f":"ROUND(D121*H121,2)","v":{"v":0,"d":"0.00 €"}}]
[{"$nulls":8},{"v":0,"d":"0.00 €"}]
[{"$nulls":8},{"$f":"ROUND(D123*H123,2)","v":{"v":0,"d":"0.00 €"}}]
[{"$nulls":8},{"$f":"ROUND(D124*H124,2)","v":{"v":0,"d":"0.00 €"}}]
[{"$nulls":8},{"v":0,"d":"0.00 €"},null,null,"Sin cambios"]
[{"$nulls":8},{"v":0,"d":"0.00 €"},null,null,"Sin cambios"]
[{"$nulls":8},{"v":0,"d":"0.00 €"},null,null,"Sin cambios"]
[{"$nulls":8},{"v":0,"d":"0.00 €"},null,null,"Sin cambios"]
[{"$nulls":8},{"v":0,"d":"0.00 €"},null,null,"Sin cambios"]
[5,"Otros costos / consumibles",null,{"$f":"IF('Datos básicos'!C20=\"Sí\",CONCATENATE(\"Ayuda:\",Ejemplo!P46),\"\")","v":"Ayuda:Tenga en cuenta que los costos indirectos se enmarcan dentro de los costos generales de administración. Solo se pueden presupuestar como líneas presupuestarias individuales los costos directos.\nCuando es posible indicar los costos de alquiler, se pueden consignar solo los costos directos, o sea, el alquiler neto sin los gastos accesorios. Los gastos accesorios son costos indirectos y como tales deben incluirse en los costos generales de administración.                                                                      \nAl contrario que los equipos y materiales adquiridos, que se utilizan durante un período más largo, en el caso de los consumibles se trata de bienes que se consumen, como por ejemplo cartuchos para impresoras, papel de impresión."},{"$nulls":4},{"$f":"SUM(I131:I151)","v":{"v":0,"d":"0.00 €"}}]
[{"$nulls":8},{"$f":"ROUND(D131*H131,2)","v":{"v":0,"d":"0.00 €"}},null,null,"Sin cambios"]
[{"$nulls":8},{"v":0,"d":"0.00 €"},null,null,"Sin cambios"]
[{"$nulls":8},{"v":0,"d":"0.00 €"},null,null,"Sin cambios"]
[{"$nulls":8},{"v":0,"d":"0.00 €"},null,null,"Sin cambios"]
[{"$nulls":8},{"v":0,"d":"0.00 €"},null,null,"Sin cambios"]
[{"$nulls":8},{"$f":"ROUND(D136*H136,2)","v":{"v":0,"d":"0.00 €"}},null,null,"Sin cambios"]
[{"$nulls":8},{"v":0,"d":"0.00 €"},null,null,"Sin cambios"]
[{"$nulls":8},{"v":0,"d":"0.00 €"},null,null,"Sin cambios"]
[{"$nulls":8},{"v":0,"d":"0.00 €"},null,null,"Sin cambios"]
[{"$nulls":8},{"v":0,"d":"0.00 €"},null,null,"Sin cambios"]
[{"$nulls":8},{"$f":"ROUND(D141*H141,2)","v":{"v":0,"d":"0.00 €"}},null,null,"Sin cambios"]
[{"$nulls":8},{"v":0,"d":"0.00 €"},null,null,"Sin cambios"]
[{"$nulls":8},{"$f":"ROUND(D143*H143,2)","v":{"v":0,"d":"0.00 €"}}]
[{"$nulls":8},{"v":0,"d":"0.00 €"}]
[{"$nulls":8},{"$f":"ROUND(D145*H145,2)","v":{"v":0,"d":"0.00 €"}}]
[{"$nulls":8},{"v":0,"d":"0.00 €"}]
[{"$nulls":8},{"v":0,"d":"0.00 €"}]
[{"$nulls":8},{"v":0,"d":"0.00 €"},null,null,"Sin cambios"]
[{"$nulls":8},{"v":0,"d":"0.00 €"},null,null,"Sin cambios"]
[{"$nulls":8},{"v":0,"d":"0.00 €"},null,null,"Sin cambios"]
[{"$nulls":8},{"v":0,"d":"0.00 €"},null,null,"Sin cambios"]
[6,"Recursos para apoyar directamente a beneficiarios terceros\n(Indicación: Esta línea presupuestaria hace referencia principalmente a aportes en especie a beneficiarios terceros. En caso de aportes financieros, debe regularse cómo se comprueban los pagos. El procedimiento de selección de los beneficiarios terceros debe explicarse en la descripción del proyecto).",null,{"$f":"IF('Datos básicos'!C20=\"Sí\",CONCATENATE(\"Ayuda:\",Ejemplo!P57),\"\")","v":"Ayuda:Tenga en cuenta la indicación en la línea presupuestaria. Los justificantes deben acordarse en el presupuesto y los criterios de selección deben exponerse en la descripción del proyecto. Importante: En este caso se trata solo de beneficiarios que se benefician del proyecto del receptor. Entre estos se cuentan el fomento de empresas emergentes, el fomento de iniciativas, medidas de efectivo por trabajo, concursos de fomento, becas y similares. Se requiere concertación respecto a los justificantes. Respecto a los detalles se requiere asesoramiento de la sección Gestión de contratos. "},{"$nulls":4},{"$f":"SUM(I153:I162)","v":{"v":0,"d":"0.00 €"}},null,null,{"$f":"IF(L151=\"VE\",\"ATENCIÓN: La GIZ no puede asumir los costos que se generan por las fluctuaciones cambiarias.\",\"\")","v":""}]
[null,"XXX (facturación contra ...)",{"$nulls":6},{"$f":"ROUND(D153*F153*H153,2)","v":{"v":0,"d":"0.00 €"}},null,null,"Sin cambios"]
[null,"XXX (facturación contra ...)",{"$nulls":6},{"v":0,"d":"0.00 €"},null,null,"Keine Änderung"]
[null,"XXX (facturación contra ...)",{"$nulls":6},{"v":0,"d":"0.00 €"},null,null,"Sin cambios"]
[null,"XXX (facturación contra ...)",{"$nulls":6},{"$f":"ROUND(D156*F156*H156,2)","v":{"v":0,"d":"0.00 €"}},null,null,"Sin cambios"]
[null,"XXX (facturación contra ...)",{"$nulls":6},{"v":0,"d":"0.00 €"},null,null,"Sin cambios"]
[null,"XXX (facturación contra ...)",{"$nulls":6},{"v":0,"d":"0.00 €"},null,null,"Sin cambios"]
[null,"XXX (facturación contra ...)",{"$nulls":6},{"v":0,"d":"0.00 €"},null,null,"Sin cambios"]
[null,"XXX (facturación contra ...)",{"$nulls":6},{"v":0,"d":"0.00 €"},null,null,"Sin cambios"]
[null,"XXX (facturación contra ...)",{"$nulls":6},{"$f":"ROUND(D161*F161*H161,2)","v":{"v":0,"d":"0.00 €"}},null,null,"Sin cambios"]
[null,"XXX (facturación contra ...)",{"$nulls":6},{"v":0,"d":"0.00 €"},null,null,"Sin cambios"]
[7,"Costos locales proporcionales del proyecto (por ejemplo, TI, investigación)",null,{"$f":"IF('Datos básicos'!C20=\"Sí\",CONCATENATE(\"Ayuda:\",Ejemplo!P62),\"\")","v":"Ayuda:Esta línea presupuestaria es únicamente para organizaciones que trabajan con una distribución o prorrateo de los costos generales en sus sistemas contables y que pueden aportar los comprobantes correspondientes. El tipo de comprobante se determina para cada caso. Un ejemplo concreto es el comprobante porcentual basado en los costos totales y los registros de tiempo."},{"$nulls":4},{"$f":"SUM(I164:I168)","v":{"v":0,"d":"0.00 €"}}]
[{"$nulls":8},{"$f":"ROUND(D164*F164*H164,2)","v":{"v":0,"d":"0.00 €"}},null,null,"Sin cambios"]
[{"$nulls":8},{"$f":"ROUND(D165*F165*H165,2)","v":{"v":0,"d":"0.00 €"}},null,null,"Sin cambios"]
[{"$nulls":8},{"v":0,"d":"0.00 €"},null,null,"Sin cambios"]
[{"$nulls":8},{"v":0,"d":"0.00 €"},null,null,"Sin cambios"]
[{"$nulls":8},{"v":0,"d":"0.00 €"},null,null,"Sin cambios"]
[null,"Subtotal costos directos",{"$nulls":6},{"$f":"I5+I43+I73+I102+I130+I152+I163","v":{"v":0,"d":"0.00 €"}}]
[8,"Costos generales de administración ",null,{"$f":"IF('Datos básicos'!C20=\"Sí\",CONCATENATE(\"Ayuda:\",Ejemplo!P66),\"\")","v":"Ayuda:Los costos generales de administración deberían ascender a 0 %. Normalmente estos costos son asumidos como aporte propio del receptor del financiamiento. Si el receptor del financiamiento no puede asumirlos, la GIZ puede hacerse cargo de un pequeño porcentaje de los costos generales de administración. En su caso, un auditor o una auditora comprueba la clase y la cuantía de los costos. Si los gastos generales administrativos se calculan con base a menos líneas presupuestarias, se requiere informar a la gestión de contratos al respecto. "},{"$nulls":4},{"$f":"I171","v":{"v":0,"d":"0.00 €"}}]
[null,"Costos generales de administración (sobre las líneas presupuestarias 1-X)",null,{"$f":"'Datos básicos'!E7","v":{"v":0,"d":"0%"}},{"$nulls":3},{"$f":"I169","v":{"v":0,"d":"0.00 €"}},{"$f":"ROUND(D171*H171,2)","v":{"v":0,"d":"0.00 €"}},null,null,"Sin cambios"]
[null,"Subtotal financiamiento de la GIZ (hasta / contra justificante)*\n(costos directos + costos generales de administración)",{"$nulls":6},{"$f":"I169+I170","v":{"v":0,"d":"0.00 €"}}]
[9,"Transferencia de financiamientos a receptores terceros —debe presentarse un presupuesto detallado—",null,{"$f":"IF('Datos básicos'!C20=\"Sí\",CONCATENATE(\"Ayuda:\",Ejemplo!P69),\"\")","v":"Ayuda:En este caso, se trata de receptores terceros (entidades de coimplementación). Son contrapartes que implementan de forma autónoma una parte del proyecto. Debe presentarse un presupuesto aparte y el proyecto de la GIZ debe realizar un examen de la aptitud comercial y jurídica (solo los criterios personalidad jurídica y utilidad pública). "},{"$nulls":4},{"$f":"SUM(I174:I179)","v":{"v":0,"d":"0.00 €"}}]
[null,"XYZ (nombre del receptor tercero) ",null,1,"Unidad",1,"Transferencia",{"$f":"'Transferencia de financiamiento'!I120","v":{"v":0,"d":"0.00 €"}},{"$f":"D174*F174*H174","v":{"v":0,"d":"0.00 €"}},null,null,"Sin cambios"]
[null,"XYZ (nombre del receptor tercero) ",null,1,"Unidad",1,"Transferencia",{"v":0,"d":"0.00 €"},{"$f":"D175*F175*H175","v":{"v":0,"d":"0.00 €"}},null,null,"Sin cambios"]
[null,"XYZ (nombre del receptor tercero) ",null,1,"Unidad",1,"Transferencia",{"v":0,"d":"0.00 €"},{"v":0,"d":"0.00 €"},null,null,"Sin cambios"]
[null,"XYZ (nombre del receptor tercero) ",null,1,"Unidad",1,"Transferencia",{"v":0,"d":"0.00 €"},{"v":0,"d":"0.00 €"},null,null,"Sin cambios"]
[null,"XYZ (nombre del receptor tercero) ",null,1,"Unidad",1,"Transferencia",{"v":0,"d":"0.00 €"},{"v":0,"d":"0.00 €"},null,null,"Sin cambios"]
[null,"XYZ (nombre del receptor tercero) ",null,1,"Unidad",1,"Transferencia",{"v":0,"d":"0.00 €"},{"v":0,"d":"0.00 €"},null,"Porcentajes ","Sin cambios"]
[null,"Contribución de la GIZ (hasta / contra justificante)*",null,{"$f":"IF('Datos básicos'!C20=\"Sí\",CONCATENATE(\"Ayuda:\",Ejemplo!P74),\"\")","v":"Ayuda:Indique solamente el valor total del porcentaje propio / financiamiento de terceros. En la descripción del proyecto se debe incluir una descripción breve del financiamiento proporcional. "},{"$nulls":4},{"$f":"I172+I173","v":{"v":0,"d":"0.00 €"}},null,{"$f":"IFERROR(I180/$I$190,\"\")","v":""}]
[10,"Contribución propio / financiamiento de terceros",{"$nulls":7},{"$f":"SUM(J182:J189)","v":{"v":0,"d":"0.00"}}]
[null,{"$f":"_xlfn.IFS('Datos básicos'!C8=\"No\",\"sin fondos financieros propios\",'Datos básicos'!C8=\"Sí\",'Datos básicos'!C3,'Datos básicos'!C8=\"Seleccionar\", \"Introduzca primero los datos básicos\",TRUE,\"\")","v":"Introduzca primero los datos básicos"},null,1,"Unidad",1,"Aporte ",{"$f":"IF('Datos básicos'!C8=\"Sí\",'Datos básicos'!E8,\"\")","v":""},null,{"$f":"H182","v":""},{"$f":"IFERROR(J182/$I$190,\"\")","v":""},"Sin cambios"]
[null,{"$f":"_xlfn.IFS('Datos básicos'!C9=0,\"No financiamanto de terceros\",'Datos básicos'!C9= \"Seleccionar\", \"Introduzca primero los datos básicos\",'Datos básicos'!C9>0,'Datos básicos'!E9,TRUE,\"\")","v":"Introduzca primero los datos básicos"},null,1,"Unidad",1,"Aporte ",{"$f":"_xlfn.IFS('Datos básicos'!$C$9=\"Seleccionar\", \"\",'Datos básicos'!$C$9>0,'Datos básicos'!G9, TRUE,\"\")","v":""},null,"",{"$f":"IFERROR(J183/$I$190,\"\")","v":""},"Sin cambios"]
[null,{"$f":"_xlfn.IFS('Datos básicos'!C9=0,\"No financiamanto de terceros\",'Datos básicos'!C9= \"Seleccionar\", \"Introduzca primero los datos básicos\",'Datos básicos'!C9>0,'Datos básicos'!E10,TRUE,\"\")","v":"Introduzca primero los datos básicos"},null,1,"Unidad",1,"Aporte ",{"$f":"_xlfn.IFS('Datos básicos'!$C$9=\"Seleccionar\", \"\",'Datos básicos'!$C$9>0,'Datos básicos'!G10, TRUE,\"\")","v":""},null,"","","Sin cambios"]
[null,{"$f":"_xlfn.IFS('Datos básicos'!C9=0,\"No financiamanto de terceros\",'Datos básicos'!C9= \"Seleccionar\", \"Introduzca primero los datos básicos\",'Datos básicos'!C9>0,'Datos básicos'!E11,TRUE,\"\")","v":"Introduzca primero los datos básicos"},null,1,"Unidad",1,"Aporte ",{"$f":"_xlfn.IFS('Datos básicos'!$C$9=\"Seleccionar\", \"\",'Datos básicos'!$C$9>0,'Datos básicos'!G11, TRUE,\"\")","v":""},null,"",{"$f":"IFERROR(J185/$I$190,\"\")","v":""},"Sin cambios"]
[null,{"$f":"_xlfn.IFS('Datos básicos'!C9=0,\"No financiamanto de terceros\",'Datos básicos'!C9= \"Seleccionar\", \"Introduzca primero los datos básicos\",'Datos básicos'!C9>0,'Datos básicos'!E12,TRUE,\"\")","v":"Introduzca primero los datos básicos"},null,1,"Unidad",1,"Aporte ",{"$f":"_xlfn.IFS('Datos básicos'!$C$9=\"Seleccionar\", \"\",'Datos básicos'!$C$9>0,'Datos básicos'!G12, TRUE,\"\")","v":""},null,"","","Sin cambios"]
[null,{"$f":"_xlfn.IFS('Datos básicos'!C9=0,\"No financiamanto de terceros\",'Datos básicos'!C9= \"Seleccionar\", \"Introduzca primero los datos básicos\",'Datos básicos'!C9>0,'Datos básicos'!E13,TRUE,\"\")","v":"Introduzca primero los datos básicos"},null,1,"Unidad",1,"Aporte ",{"$f":"_xlfn.IFS('Datos básicos'!$C$9=\"Seleccionar\", \"\",'Datos básicos'!$C$9>0,'Datos básicos'!G13, TRUE,\"\")","v":""},null,"","","Sin cambios"]
[null,{"$f":"_xlfn.IFS('Datos básicos'!C9=0,\"No financiamanto de terceros\",'Datos básicos'!C9= \"Seleccionar\", \"Introduzca primero los datos básicos\",'Datos básicos'!C9>0,'Datos básicos'!E14,TRUE,\"\")","v":"Introduzca primero los datos básicos"},null,1,"Unidad",1,"Aporte ",{"$f":"_xlfn.IFS('Datos básicos'!$C$9=\"Seleccionar\", \"\",'Datos básicos'!$C$9>0,'Datos básicos'!G14, TRUE,\"\")","v":""},null,"","","Sin cambios"]
[null,{"$f":"_xlfn.IFS('Datos básicos'!C9=0,\"No financiamanto de terceros\",'Datos básicos'!C9= \"Seleccionar\", \"Introduzca primero los datos básicos\",'Datos básicos'!C9>0,'Datos básicos'!E15,TRUE,\"\")","v":"Introduzca primero los datos básicos"},null,1,"Unidad",1,"Aporte ",{"$f":"_xlfn.IFS('Datos básicos'!$C$9=\"Seleccionar\", \"\",'Datos básicos'!$C$9>0,'Datos básicos'!G15, TRUE,\"\")","v":""},null,{"$f":"H189","v":""},{"$f":"IFERROR(J189/$I$190,\"\")","v":""},"Sin cambios"]
[null,"Financiamiento total ",{"$nulls":6},{"$f":"I180+J181","v":{"v":0,"d":"0.00 €"}},null,{"$f":"SUM(K180:K189)","v":{"v":0,"d":"0%"}}]
[]
[null,"*Todas las líneas presupuestarias (excepto los costos generales de administración) deben liquidarse contra justificante."]
[]
[null,"Información: En el caso de que esté previsto financiar adjudicaciones para servicios externos y/o para equipos y materiales y/o suministros con cargo a fondos de la GIZ, deben observarse las directrices de adjudicación relevantes en virtud del texto del contrato."]
[]
[null,"No se financian los ingresos y beneficios del receptor. No se financia la facturación interna entre unidades organizativas del receptor."]
[]
[null,"En caso de complementos al contrato: Realice las adaptaciones presupuestarias sobre la base del presupuesto acordado contractualmente por última vez y destaque los cambios en color. La GIZ no puede asumir los costos que se generan por las fluctuaciones cambiarias."]

{"sheet":"Transferencia de financiamiento","index":2,"n_rows":128,"n_cols":14,"rows_kept":128,"merged":[[0,3,0,8],[3,1,3,7],[3,8,3,9],[4,3,4,7],[4,9,115,9],[31,3,31,7],[32,4,32,6],[33,4,33,6],[34,4,34,6],[35,4,35,6],[36,4,36,6],[37,4,37,6],[38,4,38,6],[39,4,39,6],[40,4,40,6],[41,4,41,6],[42,4,42,6],[43,4,43,6],[44,4,44,6],[45,4,45,6],[46,4,46,6],[47,4,47,6],[48,4,48,6],[49,4,49,6],[50,4,50,6],[51,4,51,6],[52,4,52,6],[53,3,53,7],[54,4,54,6],[55,4,55,6],[56,4,56,6],[57,4,57,6],[58,4,58,6],[59,4,59,6],[60,4,60,6],[61,4,61,6],[62,4,62,6],[63,4,63,6],[64,4,64,6],[65,4,65,6],[66,4,66,6],[67,4,67,6],[68,4,68,6],[69,4,69,6],[70,3,70,7],[71,4,71,6],[72,4,72,6],[73,4,73,6],[74,4,74,6],[75,4,75,6],[76,4,76,6],[77,4,77,6],[78,4,78,6],[79,4,79,6],[80,4,80,6],[81,4,81,6],[82,4,82,6],[83,4,83,6],[84,4,84,6],[85,4,85,6],[86,4,86,6],[87,3,87,7],[88,4,88,6],[89,4,89,6],[90,4,90,6],[91,4,91,6],[92,4,92,6],[93,4,93,6],[94,4,94,6],[95,4,95,6],[96,4,96,6],[97,4,97,6],[98,4,98,6],[99,4,99,6],[100,4,100,6],[101,4,101,6],[102,4,102,6],[103,4,103,6],[104,3,104,7],[111,3,111,7],[116,3,116,7],[121,1,121,9],[123,1,123,9],[124,1,124,9],[125,1,125,9],[127,1,127,9]]}
[null,"Presupuesto estimado - Anexo 1",null,"Nombre del receptor tercero:",{"$nulls":5},{"$f":"'Datos básicos'!C22","v":"00:00:00"},{"$nulls":3},"sin cambios"]
[{"$nulls":13},"cambios"]
[null,"Descripción","Có-\ndigo","Canti-dad","Unidad (p. ej., persona, vehículo, sala…)","Número","Unidad (p. ej., meses, días, cursos…)","Subvencio-nable hasta  \nen EUR \n(precio por unidad) ","Contribución\ntotal de la GIZ \nen EUR (hasta)","Contribución propia / financiamiento de terceros \nen EUR (hasta) ",null,{"$f":"IF($L$4=\"VE\",CONCATENATE(\"En el caso de ajustes contractuales\",CHAR(10),\"¿Ha cambiado la línea presupuestaria?\"),\"\")","v":""}]
[null,{"$f":"IF('Datos básicos'!C20=\"Sí\",\"Nota: Las celdas con fondo azul deben ser rellenados por el receptor\",\"\")","v":"Nota: Las celdas con fondo azul deben ser rellenados por el receptor"},{"$nulls":6},{"$f":"IF('Datos básicos'!C20=\"Sí\",\"Nota: se calculan automáticamente\",\"\")","v":"Nota: se calculan automáticamente"},null,null,{"$f":"IF('Datos básicos'!C5=\"Complemento al contrato\",\"VE\",\"NOVE\")","v":"NOVE"}]
[1,"Personal propio - precio de coste para los empleados del receptor (denominación de función)\n(Indicación 1: Solo colaboradores y colaboradoras de sus organizaciones; \nla acreditación de esta línea presupuestaria debe realizarse en forma de liquidaciones salariales o, en el caso de financiamientos parciales, en forma de liquidaciones salariales y registros de tiempos trabajados; \nIndicación 2: Solamente pueden liquidarse costos directos del personal (costo bruto del personal para el empleador); los suplementos, como costos generales de personal, que se calculan de manera prorrateada sobre el personal, no son subvencionables).",null,{"$f":"IF('Datos básicos'!C20=\"Sí\",CONCATENATE(\"Ayuda:\",Ejemplo!P5),\"\")","v":"Ayuda:La columna “Subvencionable hasta” debería indicar siempre el costo bruto del empleador. En el caso de los puestos de jornada parcial el porcentaje debe indicarse en la columna D. Indique qué costos adicionales no salariales prescritos por ley se generan en su país. Por norma general son financiables las contribuciones sociales y los pagos acordados en virtud del contrato de trabajo o del convenio colectivo (excepto los pagos de bonificaciones o las participaciones en los beneficios). Otros gastos accesorios deberán concertarse, examinarse e integrarse en la línea presupuestaria en forma de nota antes de la elaboración del contrato. Los contratos de miniempleos o de personal temporal estudiantil se deben atribuir a los costos de personal, aun cuando no se abonen contribuciones sociales.                                                                                                                                                                                         Si está previsto financiar proporcionalmente a varias personas (por ejemplo, 3 personas a un 75 %) incrementar el número de meses correspondientemente e incluir el número de personas en la descripción de la línea presupuestaria."},{"$nulls":4},{"$f":"SUM(I6:I31)","v":{"v":0,"d":"0.00 €"}},"La GIZ no puede aceptar líneas presupuestarias de manera prorrateada, excepto \"costos de personal\", que se pueden atribuir porcentualmente, así como la clase de costos “Costos locales proporcionales del proyecto”. \n\nUn posible porcentaje propio o un posible financiamiento de terceros debe utilizarse para otras líneas presupuestarias que no están siendo ya financiadas por la GIZ.  ",{"$f":"IF(SUM(I5,#REF!,I32)>0.4*I119,1,0)","v":{"$error":"#REF!"}},{"$f":"IF(L4=\"VE\",\"ATENCIÓN: La GIZ no puede asumir los costos que se generan por las fluctuaciones cambiarias.\",\"\")","v":""}]
[{"$nulls":4},"Persona",null,"Meses",null,{"$f":"ROUND(D6*F6*H6,2)","v":{"v":0,"d":"0.00 €"}},null,null,"Sin cambios"]
[{"$nulls":4},"Persona",null,"Meses",null,{"$f":"ROUND(D7*F7*H7,2)","v":{"v":0,"d":"0.00 €"}},null,null,"Sin cambios"]
[{"$nulls":4},"Persona",null,"Meses",null,{"v":0,"d":"0.00 €"},null,null,"Sin cambios"]
[{"$nulls":4},"Persona",null,"Meses",null,{"v":0,"d":"0.00 €"},null,null,"Sin cambios"]
[{"$nulls":4},"Persona",null,"Meses",null,{"$f":"ROUND(D10*F10*H10,2)","v":{"v":0,"d":"0.00 €"}},null,null,"sin cambios"]
[{"$nulls":4},"Persona",null,"Meses",null,{"v":0,"d":"0.00 €"},null,null,"Sin cambios"]
[{"$nulls":4},"Persona",null,"Meses",null,{"v":0,"d":"0.00 €"},null,null,"Sin cambios"]
[{"$nulls":4},"Persona",null,"Meses",null,{"v":0,"d":"0.00 €"},null,null,"Sin cambios"]
[{"$nulls":4},"Persona",null,"Meses",null,{"v":0,"d":"0.00 €"},null,null,"Sin cambios"]
[{"$nulls":4},"Persona",null,"Meses",null,{"v":0,"d":"0.00 €"},null,null,"Sin cambios"]
[{"$nulls":4},"Persona",null,"Meses",null,{"$f":"ROUND(D16*F16*H16,2)","v":{"v":0,"d":"0.00 €"}},null,null,"sin cambios"]
[{"$nulls":4},"Persona",null,"Meses",null,{"v":0,"d":"0.00 €"},null,null,"Sin cambios"]
[{"$nulls":4},"Persona",null,"Meses",null,{"v":0,"d":"0.00 €"},null,null,"Sin cambios"]
[{"$nulls":4},"Persona",null,"Meses",null,{"v":0,"d":"0.00 €"},null,null,"Sin cambios"]
[{"$nulls":4},"Persona",null,"Meses",null,{"v":0,"d":"0.00 €"},null,null,"Sin cambios"]
[{"$nulls":4},"Persona",null,"Meses",null,{"v":0,"d":"0.00 €"},null,null,"sin cambios"]
[{"$nulls":4},"Persona",null,"Meses",null,{"v":0,"d":"0.00 €"},null,null,"Sin cambios"]
[{"$nulls":4},"Persona",null,"Meses",null,{"v":0,"d":"0.00 €"},null,null,"Sin cambios"]
[{"$nulls":4},"Persona",null,"Meses",null,{"v":0,"d":"0.00 €"},null,null,"Sin cambios"]
[{"$nulls":4},"Persona",null,"Meses",null,{"v":0,"d":"0.00 €"},null,null,"Sin cambios"]
[{"$nulls":4},"Persona",null,"Meses",null,{"v":0,"d":"0.00 €"},null,null,"Sin cambios"]
[{"$nulls":4},"Persona",null,"Meses",null,{"v":0,"d":"0.00 €"},null,null,"sin cambios"]
[{"$nulls":4},"Persona",null,"Meses",null,{"v":0,"d":"0.00 €"},null,null,"Sin cambios"]
[{"$nulls":4},"Persona",null,"Meses",null,{"v":0,"d":"0.00 €"},null,null,"Sin cambios"]
[{"$nulls":4},"Persona",null,"Meses",null,{"v":0,"d":"0.00 €"},null,null,"Sin cambios"]
[{"$nulls":4},"Persona",null,"Meses",null,{"v":0,"d":"0.00 €"},null,null,"Sin cambios"]
[2,"Servicios externos (tipo/contenido del servicio)\n",null,{"$f":"IF('Datos básicos'!C20=\"Sí\",CONCATENATE(\"Ayuda:\",Ejemplo!P11),\"\")","v":"Ayuda:Indicar el nombre de la función; ningún detalle del contrato (horas de trabajo, etc.); mencionar solo el número de los contratos y el valor planificado (deben observarse las directrices de adjudicación relevantes según el texto del contrato); por contrato debería utilizarse una línea presupuestaria; todos los costos generados durante la realización de la prestación en el marco de un contrato de servicios (por ejemplo, capacitación, viajes) se indican en una línea presupuestaria.                                                                                                                                                                                                              Eventos: Las prestaciones que realiza un mismo oferente deben indicarse en una línea presupuestaria (por ejemplo, si el catering y el lugar de un evento son ofertados por un hotel, entonces deben indicarse en una misma línea presupuestaria; si se reserva otro hotel para el alojamiento, ese se incluye entonces en una línea presupuestaria individual). Los ingresos que percibe el receptor en concepto de la organización de eventos no se pueden financiar con cargo al contrato (p. ej., alquiler de salas para dependencias propias). Solo se financian costos que se puedan acreditar fehacientemente."},{"$nulls":4},{"$f":"SUM(I33:I53)","v":{"v":0,"d":"0.00 €"}}]
[{"$nulls":4},"Contrato",{"$nulls":3},{"$f":"ROUND(D33*H33,2)","v":{"v":0,"d":"0.00 €"}},null,null,"Sin cambios"]
[{"$nulls":4},"Contrato",{"$nulls":3},{"v":0,"d":"0.00 €"},null,null,"Sin cambios"]
[{"$nulls":4},"Contrato",{"$nulls":3},{"v":0,"d":"0.00 €"},null,null,"Sin cambios"]
[{"$nulls":4},"Contrato",{"$nulls":3},{"v":0,"d":"0.00 €"},null,null,"Sin cambios"]
[{"$nulls":4},"Contrato",{"$nulls":3},{"v":0,"d":"0.00 €"},null,null,"Sin cambios"]
[{"$nulls":4},"Contrato",{"$nulls":3},{"$f":"ROUND(D38*H38,2)","v":{"v":0,"d":"0.00 €"}},null,null,"Sin cambios"]
[{"$nulls":4},"Contrato",{"$nulls":3},{"v":0,"d":"0.00 €"}]
[{"$nulls":4},"Contrato",{"$nulls":3},{"v":0,"d":"0.00 €"}]
[{"$nulls":4},"Contrato",{"$nulls":3},{"v":0,"d":"0.00 €"}]
[{"$nulls":4},"Contrato",{"$nulls":3},{"v":0,"d":"0.00 €"}]
[{"$nulls":4},"Contrato",{"$nulls":3},{"v":0,"d":"0.00 €"},null,null,"Sin cambios"]
[{"$nulls":4},"Contrato",{"$nulls":3},{"v":0,"d":"0.00 €"},null,null,"Sin cambios"]
[{"$nulls":4},"Contrato",{"$nulls":3},{"v":0,"d":"0.00 €"},null,null,"Sin cambios"]
[{"$nulls":4},"Contrato",{"$nulls":3},{"v":0,"d":"0.00 €"},null,null,"Sin cambios"]
[{"$nulls":4},"Contrato",{"$nulls":3},{"$f":"ROUND(D47*H47,2)","v":{"v":0,"d":"0.00 €"}},null,null,"Sin cambios"]
[{"$nulls":4},"Contrato",{"$nulls":3},{"v":0,"d":"0.00 €"},null,null,"Sin cambios"]
[{"$nulls":4},"Contrato",{"$nulls":3},{"$f":"ROUND(D49*H49,2)","v":{"v":0,"d":"0.00 €"}},null,null,"Sin cambios"]
[{"$nulls":4},"Contrato",{"$nulls":3},{"v":0,"d":"0.00 €"},null,null,"Sin cambios"]
[{"$nulls":4},"Contrato",{"$nulls":3},{"v":0,"d":"0.00 €"},null,null,"Sin cambios"]
[{"$nulls":4},"Contrato",{"$nulls":3},{"v":0,"d":"0.00 €"},null,null,"Sin cambios"]
[{"$nulls":4},"Contrato",{"$nulls":3},{"v":0,"d":"0.00 €"},null,null,"Sin cambios"]
[3,"Costos de transporte / gastos de viaje",null,{"$f":"IF('Datos básicos'!C20=\"Sí\",CONCATENATE(\"Ayuda:\",Ejemplo!P22),\"\")","v":"Ayuda:Entre los gastos de viaje se cuentan normalmente todos los tipos de transporte, alojamientos, viáticos, visados. Otros costos deben indicarse por separado.  La liquidación se realiza con base en las facturas y/o las normas sobre viajes del receptor y/o las disposiciones legales (por ejemplo: Ley federal alemana de gastos de viaje). No es deseable una distribución en diferentes grupos de personas.\n\nNo indique cantidades de los vuelos; en caso de divergencias serían necesarios complementos al contrato; si se lleva a cabo una auditoría se comprobará el número de los vuelos."},{"$nulls":4},{"$f":"SUM(I55:I70)","v":{"v":0,"d":"0.00 €"}}]
[{"$nulls":8},{"$f":"ROUND(D55*H55,2)","v":{"v":0,"d":"0.00 €"}},null,null,"Sin cambios"]
[{"$nulls":8},{"v":0,"d":"0.00 €"},null,null,"Sin cambios"]
[{"$nulls":8},{"v":0,"d":"0.00 €"},null,null,"Sin cambios"]
[{"$nulls":8},{"v":0,"d":"0.00 €"},null,null,"Sin cambios"]
[{"$nulls":8},{"v":0,"d":"0.00 €"},null,null,"Sin cambios"]
[{"$nulls":8},{"v":0,"d":"0.00 €"},null,null,"Sin cambios"]
[{"$nulls":8},{"$f":"ROUND(D61*H61,2)","v":{"v":0,"d":"0.00 €"}},null,null,"Sin cambios"]
[{"$nulls":8},{"$f":"ROUND(D62*H62,2)","v":{"v":0,"d":"0.00 €"}},null,null,"Sin cambios"]
[{"$nulls":8},{"v":0,"d":"0.00 €"},null,null,"Sin cambios"]
[{"$nulls":8},{"v":0,"d":"0.00 €"},null,null,"Sin cambios"]
[{"$nulls":8},{"$f":"ROUND(D65*H65,2)","v":{"v":0,"d":"0.00 €"}},null,null,"Sin cambios"]
[{"$nulls":8},{"v":0,"d":"0.00 €"},null,null,"Sin cambios"]
[{"$nulls":8},{"v":0,"d":"0.00 €"},null,null,"Sin cambios"]
[{"$nulls":8},{"v":0,"d":"0.00 €"},null,null,"Sin cambios"]
[{"$nulls":8},{"v":0,"d":"0.00 €"},null,null,"Sin cambios"]
[{"$nulls":8},{"v":0,"d":"0.00 €"},null,null,"Sin cambios"]
[4,"Adquisición de equipos y materiales",null,{"$f":"IF('Datos básicos'!C20=\"Sí\",CONCATENATE(\"Ayuda:\",Ejemplo!P35),\"\")","v":"Ayuda:Los bienes que se adquieren y acreditan en una misma factura, deberían indicarse en una línea presupuestaria. P. ej., el equipamiento de TI se puede consignar como una línea presupuestaria. En ese caso debería incluirse entre paréntesis una descripción más detallada de los equipos y materiales que previsiblemente se adquirirán. En el caso de medicamentos y productos agroquímicos, para una autorización se requiere información adicional. Para ello, rellene las hojas \"Medicamentos”, “Pesticidas y fertilizantes minerales”. "},{"$nulls":4},{"$f":"SUM(I72:I87)","v":{"v":0,"d":"0.00 €"}}]
[{"$nulls":8},{"$f":"ROUND(D72*H72,2)","v":{"v":0,"d":"0.00 €"}},null,null,"Sin cambios"]
[{"$nulls":8},{"v":0,"d":"0.00 €"},null,null,"Sin cambios"]
[{"$nulls":8},{"v":0,"d":"0.00 €"},null,null,"Sin cambios"]
[{"$nulls":8},{"v":0,"d":"0.00 €"},null,null,"Sin cambios"]
[{"$nulls":8},{"v":0,"d":"0.00 €"},null,null,"Sin cambios"]
[{"$nulls":8},{"v":0,"d":"0.00 €"},null,null,"Sin cambios"]
[{"$nulls":8},{"v":0,"d":"0.00 €"},null,null,"Sin cambios"]
[{"$nulls":8},{"v":0,"d":"0.00 €"},null,null,"Sin cambios"]
[{"$nulls":8},{"$f":"ROUND(D80*H80,2)","v":{"v":0,"d":"0.00 €"}},null,null,"sin cambios"]
[{"$nulls":8},{"v":0,"d":"0.00 €"},null,null,"Sin cambios"]
[{"$nulls":8},{"$f":"ROUND(D82*H82,2)","v":{"v":0,"d":"0.00 €"}},null,null,"Sin cambios"]
[{"$nulls":8},{"v":0,"d":"0.00 €"},null,null,"Sin cambios"]
[{"$nulls":8},{"v":0,"d":"0.00 €"},null,null,"Sin cambios"]
[{"$nulls":8},{"v":0,"d":"0.00 €"},null,null,"Sin cambios"]
[{"$nulls":8},{"v":0,"d":"0.00 €"},null,null,"sin cambios"]
[{"$nulls":8},{"v":0,"d":"0.00 €"},null,null,"Sin cambios"]
[5,"Otros costos / consumibles",null,{"$f":"IF('Datos básicos'!C20=\"Sí\",CONCATENATE(\"Ayuda:\",Ejemplo!P46),\"\")","v":"Ayuda:Tenga en cuenta que los costos indirectos se enmarcan dentro de los costos generales de administración. Solo se pueden presupuestar como líneas presupuestarias individuales los costos directos.\nCuando es posible indicar los costos de alquiler, se pueden consignar solo los costos directos, o sea, el alquiler neto sin los gastos accesorios. Los gastos accesorios son costos indirectos y como tales deben incluirse en los costos generales de administración.                                                                      \nAl contrario que los equipos y materiales adquiridos, que se utilizan durante un período más largo, en el caso de los consumibles se trata de bienes que se consumen, como por ejemplo cartuchos para impresoras, papel de impresión."},{"$nulls":4},{"$f":"SUM(I89:I104)","v":{"v":0,"d":"0.00 €"}}]
[{"$nulls":8},{"$f":"ROUND(D89*H89,2)","v":{"v":0,"d":"0.00 €"}},null,null,"Sin cambios"]
[{"$nulls":8},{"$f":"ROUND(D90*H90,2)","v":{"v":0,"d":"0.00 €"}},null,null,"Sin cambios"]
[{"$nulls":8},{"v":0,"d":"0.00 €"},null,null,"Sin cambios"]
[{"$nulls":8},{"v":0,"d":"0.00 €"},null,null,"Sin cambios"]
[{"$nulls":8},{"v":0,"d":"0.00 €"},null,null,"Sin cambios"]
[{"$nulls":8},{"v":0,"d":"0.00 €"},null,null,"Sin cambios"]
[{"$nulls":8},{"v":0,"d":"0.00 €"},null,null,"Sin cambios"]
[{"$nulls":8},{"v":0,"d":"0.00 €"},null,null,"Sin cambios"]
[{"$nulls":8},{"v":0,"d":"0.00 €"},null,null,"Sin cambios"]
[{"$nulls":8},{"v":0,"d":"0.00 €"},null,null,"Sin cambios"]
[{"$nulls":8},{"v":0,"d":"0.00 €"},null,null,"Sin cambios"]
[{"$nulls":8},{"v":0,"d":"0.00 €"},null,null,"Sin cambios"]
[{"$nulls":8},{"$f":"ROUND(D101*H101,2)","v":{"v":0,"d":"0.00 €"}},null,null,"Sin cambios"]
[{"$nulls":8},{"v":0,"d":"0.00 €"},null,null,"Sin cambios"]
[{"$nulls":8},{"v":0,"d":"0.00 €"},null,null,"Sin cambios"]
[{"$nulls":8},{"v":0,"d":"0.00 €"},null,null,"Sin cambios"]
[6,"Recursos para apoyar directamente a beneficiarios terceros\n(Indicación: Esta línea presupuestaria hace referencia principalmente a aportes en especie a beneficiarios; en caso de aportes financieros, debe indicarse claramente cómo se acreditan los pagos. El procedimiento de selección para los beneficiarios debe explicarse en la descripción del proyecto).",null,{"$f":"IF('Datos básicos'!C20=\"Sí\",CONCATENATE(\"Ayuda:\",Ejemplo!P57),\"\")","v":"Ayuda:Tenga en cuenta la indicación en la línea presupuestaria. Los justificantes deben acordarse en el presupuesto y los criterios de selección deben exponerse en la descripción del proyecto. Importante: En este caso se trata solo de beneficiarios que se benefician del proyecto del receptor. Entre estos se cuentan el fomento de empresas emergentes, el fomento de iniciativas, medidas de efectivo por trabajo, concursos de fomento, becas y similares. Se requiere concertación respecto a los justificantes. Respecto a los detalles se requiere asesoramiento de la sección Gestión de contratos. "},{"$nulls":4},{"$f":"SUM(I106:I111)","v":{"v":0,"d":"0.00 €"}},null,null,{"$f":"IF(L104=\"VE\",\"ATENCIÓN: La GIZ no puede asumir los costos que se generan por las fluctuaciones cambiarias.\",\"\")","v":""}]
[null,"XXX (facturación contra ...)",{"$nulls":6},{"$f":"ROUND(D106*F106*H106,2)","v":{"v":0,"d":"0.00 €"}},null,null,"Sin cambios"]
[null,"XXX (facturación contra ...)",{"$nulls":6},{"v":0,"d":"0.00 €"},null,null,"Sin cambios"]
[null,"XXX (facturación contra ...)",{"$nulls":6},{"v":0,"d":"0.00 €"},null,null,"Sin cambios"]
[null,"XXX (facturación contra ...)",{"$nulls":6},{"v":0,"d":"0.00 €"},null,null,"Sin cambios"]
[null,"XXX (facturación contra ...)",{"$nulls":6},{"v":0,"d":"0.00 €"},null,null,"Sin cambios"]
[null,"XXX (facturación contra ...)",{"$nulls":6},{"v":0,"d":"0.00 €"},null,null,"Sin cambios"]
[7,"Costos locales proporcionales del proyecto (por ejemplo, TI, investigación)",null,{"$f":"IF('Datos básicos'!C20=\"Sí\",CONCATENATE(\"Ayuda:\",Ejemplo!P62),\"\")","v":"Ayuda:Esta línea presupuestaria es únicamente para organizaciones que trabajan con una distribución o prorrateo de los costos generales en sus sistemas contables y que pueden aportar los comprobantes correspondientes. El tipo de comprobante se determina para cada caso. Un ejemplo concreto es el comprobante porcentual basado en los costos totales y los registros de tiempo."},{"$nulls":4},{"$f":"SUM(I113:I115)","v":{"v":0,"d":"0.00 €"}}]
[{"$nulls":8},{"$f":"ROUND(D113*F113*H113,2)","v":{"v":0,"d":"0.00 €"}},null,null,"Sin cambios"]
[{"$nulls":8},{"$f":"ROUND(D114*F114*H114,2)","v":{"v":0,"d":"0.00 €"}},null,null,"Sin cambios"]
[{"$nulls":8},{"$f":"ROUND(D115*F115*H115,2)","v":{"v":0,"d":"0.00 €"}},null,null,"Sin cambios"]
[null,"Subtotal costos directos",{"$nulls":6},{"$f":"I112+I105+I88+I71+I54+I32+I5","v":{"v":0,"d":"0.00 €"}}]
[8,"Costos generales de administración ",null,{"$f":"IF('Datos básicos'!C20=\"Sí\",CONCATENATE(\"Ayuda:\",Ejemplo!P66),\"\")","v":"Ayuda:Los costos generales de administración deberían ascender a 0 %. Normalmente estos costos son asumidos como aporte propio del receptor del financiamiento. Si el receptor del financiamiento no puede asumirlos, la GIZ puede hacerse cargo de un pequeño porcentaje de los costos generales de administración. En su caso, un auditor o una auditora comprueba la clase y la cuantía de los costos. Si los gastos generales administrativos se calculan con base a menos líneas presupuestarias, se requiere informar a la gestión de contratos al respecto. "},{"$nulls":4},{"$f":"I118","v":{"v":0,"d":"0.00 €"}}]
[null,"Costos generales de administración (sobre las líneas presupuestarias 1-X) ",null,{"v":0,"d":"0%"},{"$nulls":3},{"$f":"I116","v":{"v":0,"d":"0.00 €"}},{"$f":"D118*H118","v":{"v":0,"d":"0.00 €"}},null,null,"Sin cambios"]
[null,"Subtotal financiamiento de la GIZ (hasta / contra justificante)*\n(costos directos + costos generales de administración)",{"$nulls":6},{"$f":"I116+I117","v":{"v":0,"d":"0.00 €"}}]
[null,"Contribución de la GIZ (hasta / contra justificante)*",{"$nulls":6},{"$f":"I119","v":{"v":0,"d":"0.00 €"}}]
[]
[null,"*Todas las líneas presupuestarias (excepto los costos generales de administración) deben liquidarse contra justificante."]
[]
[null,"Información: En el caso de que esté previsto financiar adjudicaciones para servicios externos y/o para equipos y materiales y/o suministros con cargo a fondos de la GIZ, deben observarse las directrices de adjudicación relevantes en virtud del texto del contrato."]
[]
[null,"No se financian los ingresos y beneficios del receptor. No se financia la facturación interna entre unidades organizativas del receptor."]
[]
[null,"En caso de complementos al contrato: Realice las adaptaciones presupuestarias sobre la base del presupuesto acordado contractualmente por última vez y destaque los cambios en color. La GIZ no puede asumir los costos que se generan por las fluctuaciones cambiarias."]

{"sheet":"Ejemplo","index":3,"n_rows":87,"n_cols":16,"rows_kept":87,"merged":[[0,0,0,8],[3,1,3,7],[3,8,3,9],[4,3,4,7],[4,9,64,9],[4,15,8,15],[10,3,10,7],[10,15,19,15],[11,4,11,6],[12,4,12,6],[13,4,13,6],[14,4,14,6],[15,4,15,6],[16,4,16,6],[17,4,17,6],[18,4,18,6],[19,4,19,6],[20,4,20,6],[21,3,21,7],[21,15,28,15],[22,4,22,6],[23,4,23,6],[24,4,24,6],[25,4,25,6],[26,4,26,6],[27,4,27,6],[28,4,28,6],[29,3,29,7],[34,3,34,7],[34,15,43,15],[35,4,35,6],[36,4,36,6],[37,4,37,6],[38,4,38,6],[39,4,39,6],[40,4,40,6],[41,4,41,6],[42,4,42,6],[43,4,43,6],[44,4,44,6],[45,3,45,7],[45,15,53,15],[46,4,46,6],[47,4,47,6],[48,4,48,6],[49,4,49,6],[50,4,50,6],[51,4,51,6],[52,4,52,6],[53,4,53,6],[54,4,54,6],[55,4,55,6],[56,3,56,7],[56,15,59,15],[61,3,61,7],[61,15,63,15],[62,4,62,6],[64,1,64,7],[65,15,66,15],[68,3,68,7],[68,15,70,15],[73,15,75,15],[78,1,78,7],[78,8,78,9],[80,1,80,10],[82,1,83,9],[84,1,84,9],[85,1,85,9],[86,1,87,9],[86,15,88,15]]}
["Presupuesto estimado - Anexo 1",{"$nulls":8},{"$f":"'Datos básicos'!C33","v":"00:00:00"},{"$nulls":5},"Instrucciones:\nEsta hoja sirve únicamente como orientación para cumplimentar la hoja “Presupuesto financiamientos”. "]
[]
[null,"Descripción","Código","Número ","Unidad (p. ej., persona, vehículo, sala…)","Número","Unidad (p. ej., meses, días, cursos…)","Subvencio-nable hasta  \nen EUR \n(precio por unidad) ","Contribución\ntotal de la GIZ \nen EUR (hasta)","Contribución propia / financiamiento de terceros \nen EUR (hasta) ",{"$nulls":5},"Indicaciones generales: \nEste formato del presupuesto es válido como base de liquidación. Si lo desea, para su uso interno puede crear otros archivos con información más detallada.\nTodas las partidas indicadas en el presupuesto se deben reflejar en la descripción del proyecto para que quede clara la referencia al proyecto. \nLa tabla dispone de fórmulas que deben conservarase.  \nMantenga el formato con dos decimales. \nSe recomienda redondear al alza las unidades en la medida de lo posible. Los costos se acuerdan con un valor de “hasta”. "]
[null,"Nota: Las celdas con fondo azul deben ser rellenados por el receptor",{"$nulls":6},"Nota: se calculan automáticamente",{"$nulls":6},"Indicaciones para la cumplimentación "]
[1,"Personal propio - precio de coste para los empleados del receptor (denominación de función)\n\n(Indicación 1: Solo colaboradores y colaboradoras de sus organizaciones; \nla acreditación de esta línea presupuestaria debe realizarse en forma de liquidaciones salariales o, en el caso de financiamientos parciales, en forma de liquidaciones salariales y registros de tiempos trabajados; \nIndicación 2: Solamente pueden liquidarse costos directos del personal (costo bruto del personal para el empleador); los suplementos, como costos generales de personal, que se calculan de manera prorrateada sobre el personal, no son subvencionables).",null,"",{"$nulls":4},{"$f":"SUM(I6:I10)","v":{"v":82000,"d":"82,000.00"}},"La GIZ no puede aceptar líneas presupuestarias de manera prorrateada, excepto \"costos de personal\", que se pueden atribuir porcentualmente, así como la clase de costos “Costos locales proporcionales del proyecto”. \n\nUn posible porcentaje propio o un posible financiamiento de terceros debe utilizarse para otras líneas presupuestarias que no estén siendo ya financiadas por la GIZ.  ",{"$nulls":5},"La columna “Subvencionable hasta” debería indicar siempre el costo bruto del empleador. En el caso de los puestos de jornada parcial el porcentaje debe indicarse en la columna D. Indique qué costos adicionales no salariales prescritos por ley se generan en su país. Por norma general son financiables las contribuciones sociales y los pagos acordados en virtud del contrato de trabajo o del convenio colectivo (excepto los pagos de bonificaciones o las participaciones en los beneficios). Otros gastos accesorios deberán concertarse, examinarse e integrarse en la línea presupuestaria en forma de nota antes de la elaboración del contrato. Los contratos de miniempleos o de personal temporal estudiantil se deben atribuir a los costos de personal, aun cuando no se abonen contribuciones sociales.                                                                                                                                                                                         Si está previsto financiar proporcionalmente a varias personas (por ejemplo, 3 personas a un 75 %) incrementar el número de meses correspondientemente e incluir el número de personas en la descripción de la línea presupuestaria."]
[null,"Encargado / encargada de la gestión de proyectos",null,{"v":1,"d":"100%"},"Persona ",20,"Meses ",{"v":3000,"d":"3,000.00"},{"$f":"D6*F6*H6","v":{"v":60000,"d":"60,000.00"}}]
[null,"Responsable de finanzas ",null,{"v":0.5,"d":"50%"},"Persona ",20,"Meses ",{"v":2200,"d":"2,200.00"},{"$f":"D7*F7*H7","v":{"v":22000,"d":"22,000.00"}}]
[null,"Indemnizaciones por despido / Reservas por disposición legal",null,null,"Persona ",null,"Meses ",null,{"$f":"D8*F8*H8","v":{"v":0,"d":"0.00"}}]
[{"$nulls":4},"Persona ",null,"Meses ",null,{"$f":"D9*F9*H9","v":{"v":0,"d":"0.00"}}]
[{"$nulls":4},"Persona ",null,"Meses ",null,{"$f":"D10*F10*H10","v":{"v":0,"d":"0.00"}}]
[2,"Servicios externos (tipo/contenido del servicio)\n",null,"",{"$nulls":4},{"$f":"SUM(I12:I21)","v":{"v":7000,"d":"7,000.00"}},{"$nulls":6},"Indicar el nombre de la función; ningún detalle del contrato (horas de trabajo, etc.); mencionar solo el número de los contratos y el valor planificado (deben observarse las directrices de adjudicación relevantes según el texto del contrato); por contrato debería utilizarse una línea presupuestaria; todos los costos generados durante la realización de la prestación en el marco de un contrato de servicios (por ejemplo, capacitación, viajes) se indican en una línea presupuestaria.                                                                                                                                                                                                              Eventos: Las prestaciones que realiza un mismo oferente deben indicarse en una línea presupuestaria (por ejemplo, si el catering y el lugar de un evento son ofertados por un hotel, entonces deben indicarse en una misma línea presupuestaria; si se reserva otro hotel para el alojamiento, ese se incluye entonces en una línea presupuestaria individual). Los ingresos que percibe el receptor en concepto de la organización de eventos no se pueden financiar con cargo al contrato (p. ej., alquiler de salas para dependencias propias). Solo se financian costos que se puedan acreditar fehacientemente."]
[null,"Moderación",null,1,"Contrato ",null,null,{"v":5000,"d":"5,000.00"},{"$f":"D12*H12","v":{"v":5000,"d":"5,000.00"}}]
[null,"Catering y alquiler de salas",null,1,"Contrato ",null,null,{"v":2000,"d":"2,000.00"},{"$f":"D13*H13","v":{"v":2000,"d":"2,000.00"}}]
[null,"Experto / experta en tecnología solar",null,1,"Contrato ",{"$nulls":3},{"v":0,"d":"0.00"}]
[null,"Experto / experta en...",null,1,"Contrato ",{"$nulls":3},{"v":0,"d":"0.00"}]
[null,"personal externo (no en régimen asalariado con obligación de cotizar a la seguridad social con el receptor)",null,1,"Contrato ",{"$nulls":3},{"v":0,"d":"0.00"}]
[null,"Contratos de asesoramiento",null,1,"Contrato ",{"$nulls":3},{"v":0,"d":"0.00"}]
[null,"Empresas externas, p. ej. para transportes en autobús",null,1,"Contrato ",{"$nulls":3},{"v":0,"d":"0.00"}]
[{"$nulls":4},"Contrato ",{"$nulls":3},{"v":0,"d":"0.00"}]
[{"$nulls":4},"Contrato ",{"$nulls":3},{"v":0,"d":"0.00"}]
[{"$nulls":4},"Contrato ",{"$nulls":3},{"v":0,"d":"0.00"}]
[3,"Costos de transporte / gastos de viaje",null,"",{"$nulls":4},{"$f":"SUM(I23:I32)","v":{"v":4500,"d":"4,500.00"}},{"$nulls":6},"Entre los gastos de viaje se cuentan normalmente todos los tipos de transporte, alojamientos, viáticos, visados. Otros costos deben indicarse por separado.  La liquidación se realiza con base en las facturas y/o las normas sobre viajes del receptor y/o las disposiciones legales (por ejemplo: Ley federal alemana de gastos de viaje). No es deseable una distribución en diferentes grupos de personas.\n\nNo indique cantidades de los vuelos; en caso de divergencias serían necesarios complementos al contrato; si se lleva a cabo una auditoría se comprobará el número de los vuelos."]
[null,"Vuelos internacionales",null,1,"Unidad",null,null,{"v":4000,"d":"4,000.00"},{"$f":"D23*H23","v":{"v":4000,"d":"4,000.00"}}]
[null,"Vuelos nacionales",null,1,"Unidad",null,null,{"v":500,"d":"500.00"},{"$f":"D24*H24","v":{"v":500,"d":"500.00"}}]
[null,"Gastos de viaje internacionales (viáticos / viáticos por pernoctación, medios de transporte, visado, vacunas necesarias)",null,null,"Unidad",{"$nulls":3},{"v":0,"d":"0.00"}]
[null,"Gastos de viaje nacionales (viáticos / viáticos por pernoctación, medios de transporte)",null,null,"Unidad",{"$nulls":3},{"v":0,"d":"0.00"}]
[null,"Costos de transporte de mercancías",null,null,"Unidad",{"$nulls":3},{"v":0,"d":"0.00"}]
[null,"Gastos de viaje de participantes en talleres",null,null,"Unidad",{"$nulls":3},{"v":0,"d":"0.00"}]
[{"$nulls":8},{"v":0,"d":"0.00"}]
[null,"4. Co2 Kompensationen",{"$nulls":6},{"$f":"D30*F30*H30","v":{"v":0,"d":"0.00"}},null,"möglicherweise erstmal raus"]
[{"$nulls":8},{"$f":"D31*F31*H31","v":{"v":0,"d":"0.00"}}]
[{"$nulls":8},{"$f":"D32*F32*H32","v":{"v":0,"d":"0.00"}}]
[]
[]
[4,"Adquisición de equipos y materiales",null,"",{"$nulls":4},{"$f":"SUM(I36:I45)","v":{"v":4000,"d":"4,000.00"}},{"$nulls":6},"Los bienes que se adquieren y acreditan en una misma factura, deberían indicarse en una línea presupuestaria. P. ej., el equipamiento de TI se puede consignar como una línea presupuestaria. En ese caso debería incluirse entre paréntesis una descripción más detallada de los equipos y materiales que previsiblemente se adquirirán. En el caso de medicamentos y productos agroquímicos, para una autorización se requiere información adicional. Para ello, rellene las hojas \"Medicamentos”, “Pesticidas y fertilizantes minerales”. "]
[null,"Equipamiento de TI (computadora portátil, impresora, proyector, accesorios)",null,1,"Adquisición",null,null,{"v":4000,"d":"4,000.00"},{"$f":"D36*H36","v":{"v":4000,"d":"4,000.00"}}]
[null,"Equipamiento fotográfico (cámara y accesorios)",{"$nulls":6},{"$f":"D37*H37","v":{"v":0,"d":"0.00"}}]
[null,"Máquina XY (indicar en concreto qué máquina, ¡pero no mencionar el modelo concreto ni la empresa!)",{"$nulls":6},{"v":0,"d":"0.00"}]
[null,"Mobiliario (escritorios, sillas, armarios)",{"$nulls":6},{"v":0,"d":"0.00"}]
[null,"Indicar exactamente los vehículos, de qué tipo:  p. ej. vehículo eléctrico, SUV blindado, escúter...",{"$nulls":6},{"v":0,"d":"0.00"}]
[null,"Teléfonos móviles",{"$nulls":6},{"v":0,"d":"0.00"}]
[{"$nulls":8},{"v":0,"d":"0.00"}]
[{"$nulls":8},{"v":0,"d":"0.00"}]
[{"$nulls":8},{"v":0,"d":"0.00"}]
[{"$nulls":8},{"v":0,"d":"0.00"}]
[5,"Otros costos / consumibles",null,{"$f":"IF('Datos básicos'!C31=\"Ja\",CONCATENATE(\"AUSFÜLLHILFE: \",TRIM(Ejemplo!P69)),\"\")","v":""},{"$nulls":4},{"$f":"SUM(I47:I56)","v":{"v":100,"d":"100.00"}},{"$nulls":6},"Tenga en cuenta que los costos indirectos se enmarcan dentro de los costos generales de administración. Solo se pueden presupuestar como líneas presupuestarias individuales los costos directos.\nCuando es posible indicar los costos de alquiler, se pueden consignar solo los costos directos, o sea, el alquiler neto sin los gastos accesorios. Los gastos accesorios son costos indirectos y como tales deben incluirse en los costos generales de administración.                                                                      \nAl contrario que los equipos y materiales adquiridos, que se utilizan durante un período más largo, en el caso de los consumibles se trata de bienes que se consumen, como por ejemplo cartuchos para impresoras, papel de impresión."]
[null,"Material de oficina (papel de impresión, cartuchos para impresoras, material de escritura)",null,1,"Unidad",null,null,{"v":100,"d":"100.00"},{"$f":"D47*H47","v":{"v":100,"d":"100.00"}}]
[null,"Software de TI, licencias",{"$nulls":6},{"$f":"D48*H48","v":{"v":0,"d":"0.00"}}]
[null,"Material de embalaje para xxx",{"$nulls":6},{"v":0,"d":"0.00"}]
[null,"Material de laboratorio",{"$nulls":6},{"v":0,"d":"0.00"}]
[null,"Productos higiénicos",{"$nulls":6},{"v":0,"d":"0.00"}]
[null,"Herramientas",{"$nulls":6},{"v":0,"d":"0.00"}]
[null,"Agua",{"$nulls":6},{"v":0,"d":"0.00"}]
[null,"Folletos / material publicitario",{"$nulls":6},{"v":0,"d":"0.00"}]
[null,"Gastos telefónicos, tarjetas telefónicas…",{"$nulls":6},{"v":0,"d":"0.00"}]
[{"$nulls":8},{"v":0,"d":"0.00"}]
[6,"Recursos para apoyar directamente a beneficiarios terceros\n(Indicación: Esta línea presupuestaria hace referencia principalmente a aportes en especie a beneficiarios terceros; en caso de aportes financieros, debe indicarse claramente cómo se acreditan los pagos. El procedimiento de selección para los beneficiarios terceros debe explicarse en la descripción del proyecto).",null,{"$f":"IF('Datos básicos'!C31=\"Ja\",CONCATENATE(\"AUSFÜLLHILFE: \",TRIM(Ejemplo!P75)),\"\")","v":""},{"$nulls":4},{"$f":"SUM(I58:I61)","v":{"v":600,"d":"600.00"}},{"$nulls":6},"Tenga en cuenta la indicación en la línea presupuestaria. Los justificantes deben acordarse en el presupuesto y los criterios de selección deben exponerse en la descripción del proyecto. Importante: En este caso se trata solo de beneficiarios que se benefician del proyecto del receptor. Entre estos se cuentan el fomento de empresas emergentes, el fomento de iniciativas, medidas de efectivo por trabajo, concursos de fomento, becas y similares. Se requiere concertación respecto a los justificantes. Respecto a los detalles se requiere asesoramiento de la sección Gestión de contratos. "]
[null,"Efectivo por trabajo (La liquidación se realiza contra la lista de participación, confirmación de recepción mediante firma o huella dactilar; el procedimiento de selección se muestra en la descripción del proyecto)",null,10,"Personas",20,"Días",{"v":3,"d":"3.00"},{"$f":"D58*F58*H58","v":{"v":600,"d":"600.00"}}]
[{"$nulls":8},{"$f":"D59*F59*H59","v":{"v":0,"d":"0.00"}}]
[{"$nulls":8},{"$f":"D60*F60*H60","v":{"v":0,"d":"0.00"}}]
[{"$nulls":8},{"$f":"D61*F61*H61","v":{"v":0,"d":"0.00"}}]
[7,"Costos locales proporcionales del proyecto (por ejemplo, TI, investigación)",{"$nulls":6},{"$f":"SUM(I63:I64)","v":{"v":0,"d":"0.00"}},{"$nulls":6},"Esta línea presupuestaria es únicamente para organizaciones que trabajan con una distribución o prorrateo de los costos generales en sus sistemas contables y que pueden aportar los comprobantes correspondientes. El tipo de comprobante se determina para cada caso. Un ejemplo concreto es el comprobante porcentual basado en los costos totales y los registros de tiempo."]
[{"$nulls":4},"Unidad",{"$nulls":3},{"$f":"D63*H63","v":{"v":0,"d":"0.00"}}]
[{"$nulls":8},{"$f":"D64*H64","v":{"v":0,"d":"0.00"}}]
[null,"Subtotal costos directos",{"$nulls":6},{"$f":"I46+I35+I11+I5+I22+I30+I57","v":{"v":98200,"d":"98,200.00"}}]
[8,"Costos generales de administración ",{"$nulls":6},{"$f":"I67","v":{"v":4910,"d":"4,910.00"}},{"$nulls":6},"Los costos generales de administración deberían ascender a 0 %. Normalmente estos costos son asumidos como aporte propio del receptor del financiamiento. Si el receptor del financiamiento no puede asumirlos, la GIZ puede hacerse cargo de un pequeño porcentaje de los costos generales de administración. En su caso, un auditor o una auditora comprueba la clase y la cuantía de los costos. Si los gastos generales administrativos se calculan con base a menos líneas presupuestarias, se requiere informar a la gestión de contratos al respecto. "]
[null,"Costos generales de administración  (sobre las líneas presupuestarias 1-7)",null,{"v":0.05,"d":"5%"},{"$nulls":3},{"$f":"I65","v":{"v":98200,"d":"98,200.00"}},{"$f":"D67*H67","v":{"v":4910,"d":"4,910.00"}}]
[null,"Subtotal financiamiento de la GIZ (hasta / contra justificante)*\n(costos directos + costos generales de administración)",{"$nulls":6},{"$f":"I65+I66","v":{"v":103110,"d":"103,110.00"}}]
[9,"Transferencia de financiamientos a receptores terceros —debe presentarse un presupuesto detallado—",null,{"$f":"IF('Datos básicos'!C31=\"Ja\",CONCATENATE(\"AUSFÜLLHILFE: \",TRIM(Ejemplo!#REF!)),\"\")","v":""},{"$nulls":11},"En este caso, se trata de receptores terceros (entidades de coimplementación). Son contrapartes que implementan de forma autónoma una parte del proyecto. Debe presentarse un presupuesto aparte y el proyecto de la GIZ debe realizar un examen de la aptitud comercial y jurídica (solo los criterios personalidad jurídica y utilidad pública). "]
[null,"OPQ",null,1,"Unidad",1,"Transferencia",{"v":10000,"d":"10,000.00"},{"$f":"D70*F70*H70","v":{"v":10000,"d":"10,000.00 €"}}]
[null,"XYZ (nombre del receptor tercero) ",null,1,"Unidad",1,"Transferencia",null,{"$f":"D71*F71*H71","v":{"v":0,"d":"0.00 €"}}]
[null,"XYZ (nombre del receptor tercero) ",null,1,"Unidad",1,"Transferencia",null,{"$f":"D72*F72*H72","v":{"v":0,"d":"0.00 €"}},null,"Porcentajes "]
[null,"Contribución de la GIZ (hasta / contra justificante)*",{"$nulls":6},{"$f":"I68","v":{"v":103110,"d":"103,110.00 €"}},{"$f":"I73","v":{"v":103110,"d":"103,110.00 €"}},{"$f":"IFERROR(I73/$I$79,\"\")","v":{"v":0.872999745999492,"d":"87.30%"}}]
[{"$f":"10","v":10},"Contribución propia / financiamiento de terceros",{"$nulls":7},{"$f":"SUM(J75:J77)","v":{"v":15000,"d":"15,000.00"}},{"$nulls":5},"Indique solamente el valor total del porcentaje propio / financiamiento de terceros. En la descripción del proyecto se debe incluir una descripción breve del financiamiento proporcional. "]
[null,"ABC (contribución propia)",null,1,"Unidad",1,"Aporte ",{"v":5000,"d":"5,000.00"},null,{"$f":"H75","v":{"v":5000,"d":"5,000.00"}},{"$f":"IFERROR(J75/$I$79,\"\")","v":{"v":0.042333418000169334,"d":"4.23%"}}]
[null,"DEF (financiamiento de terceros)",null,1,"Unidad",1,"Aporte ",{"v":10000,"d":"10,000.00"},null,{"$f":"H76","v":{"v":10000,"d":"10,000.00"}},{"$f":"IFERROR(J76/$I$79,\"\")","v":{"v":0.08466683600033867,"d":"8.47%"}}]
[{"$nulls":3},1,"Unidad",1,"Aporte ",{"$nulls":3},{"$f":"IFERROR(J77/$I$79,\"\")","v":{"v":0,"d":"0.00%"}}]
[{"$nulls":3},1,"Unidad",1,"Aporte ",{"$nulls":3},{"$f":"IFERROR(J78/$I$79,\"\")","v":{"v":0,"d":"0.00%"}}]
[null,"Financiamiento total ",{"$nulls":6},{"$f":"I73+J74","v":{"v":118110,"d":"118,110.00 €"}},null,{"$f":"SUM(K73:K78)","v":{"v":1,"d":"100.00%"}}]
[{"$nulls":14},{"$f":"IFERROR(N80/$I$112,\"\")","v":""}]
[null,"*Todas las líneas presupuestarias (excepto los costos generales de administración) deben liquidarse contra justificante.",{"$nulls":12},""]
[{"$nulls":14},""]
[null,"Información: En el caso de que esté previsto financiar adjudicaciones para servicios externos y/o para equipos y materiales y/o suministros con cargo a fondos de la GIZ, deben observarse las directrices de adjudicación relevantes en virtud del texto del contrato.",{"$nulls":12},{"$f":"IFERROR(N83/$I$112,\"\")","v":""}]
[]
[]
[null,"No se financian los ingresos y beneficios del receptor. No se financia la facturación interna entre unidades organizativas del receptor."]
[null,"En caso de complementos al contrato: Realice las adaptaciones presupuestarias sobre la base del presupuesto acordado contractualmente por última vez y destaque los cambios en color. La GIZ no puede asumir los costos que se generan por las fluctuaciones cambiarias.",{"$nulls":13},"En la solicitud de modificación del contrato deben explicarse las reasignaciones presupuestarias. Especialmente en caso de que se incrementen los costos de personal deberá indicarse un motivo. "]